[Event "Titled Tuesday Blitz March 14 Late 2023"]
[White "Garcia Pantoja, Roberto"]
[Black "Xu, Yi"]
[WhiteFideId "3509265"]
[BlackFideId "8605564"]
[WhiteElo "2544"]
[BlackElo "2471"]
[Result "1-0"]
[Round "09"]
[TimeControl "180+2"]
[Date "2023.03.14"]
[WhiteClock "0:00:04"]
[BlackClock "0:00:01"]

1. e4 {[%clk 0:02:59]}  c5 {[%clk 0:02:58]} 2. Nf3 {[%clk 0:02:57]}  d6 {[%clk 0:02:57]} 3. d4 {[%clk 0:02:57]}  cxd4 {[%clk 0:02:57]} 4. Nxd4 {[%clk 0:02:58]}  Nf6 {[%clk 0:02:57]} 5. Nc3 {[%clk 0:02:58]}  a6 {[%clk 0:02:57]} 6. Bg5 {[%clk 0:02:58]}  e6 {[%clk 0:02:57]} 7. f4 {[%clk 0:02:58]}  Qb6 {[%clk 0:02:55]} 8. Qd3 {[%clk 0:02:48]}  Qxb2 {[%clk 0:02:53]} 9. Rb1 {[%clk 0:02:48]}  Qa3 {[%clk 0:02:53]} 10. f5 {[%clk 0:02:46]}  Be7 {[%clk 0:02:35]} 11. fxe6 {[%clk 0:02:45]}  fxe6 {[%clk 0:02:34]} 12. Be2 {[%clk 0:02:39]}  Qa5 {[%clk 0:02:30]} 13. Bd2 {[%clk 0:02:36]}  Qc7 {[%clk 0:02:23]} 14. g4 {[%clk 0:02:17]}  h6 {[%clk 0:02:05]} 15. e5 {[%clk 0:02:16]}  dxe5 {[%clk 0:02:00]} 16. Qg6+ {[%clk 0:02:13]}  Kf8 {[%clk 0:01:51]} 17. Nf3 {[%clk 0:02:10]}  Bd7 {[%clk 0:01:45]} 18. g5 {[%clk 0:02:07]}  Be8 {[%clk 0:01:45]} 19. Qd3 {[%clk 0:02:05]}  hxg5 {[%clk 0:01:24]} 20. Nxg5 {[%clk 0:02:06]}  Bf7 {[%clk 0:01:05]} 21. Nxf7 {[%clk 0:01:32]}  Kxf7 {[%clk 0:01:05]} 22. Rg1 {[%clk 0:01:33]}  Bc5 {[%clk 0:01:05]} 23. Qg6+ {[%clk 0:01:29]}  Kf8 {[%clk 0:01:03]} 24. Rf1 {[%clk 0:01:29]}  Qf7 {[%clk 0:00:49]} 25. Qxf7+ {[%clk 0:01:27]}  Kxf7 {[%clk 0:00:49]} 26. Rxb7+ {[%clk 0:01:28]}  Kg8 {[%clk 0:00:29]} 27. Bc4 {[%clk 0:01:26]}  Rxh2 {[%clk 0:00:18]} 28. Bxe6+ {[%clk 0:01:23]}  Kh8 {[%clk 0:00:19]} 29. Bg5 {[%clk 0:00:58]}  Bd4 {[%clk 0:00:16]} 30. Ne4 {[%clk 0:00:41]}  Nbd7 {[%clk 0:00:11]} 31. Nxf6 {[%clk 0:00:38]}  gxf6 {[%clk 0:00:06]} 32. Rxf6 {[%clk 0:00:23]}  Bc3+ {[%clk 0:00:06]} 33. Kf1 {[%clk 0:00:16]}  Nc5 {[%clk 0:00:07]} 34. Rc7 {[%clk 0:00:06]}  Ne4 {[%clk 0:00:06]} 35. Rg6 {[%clk 0:00:05]}  Rf8+ {[%clk 0:00:03]} 36. Kg1 {[%clk 0:00:05]}  Nxg5 {[%clk 0:00:02]} 37. Kxh2 {[%clk 0:00:04]}  Nf3+ {[%clk 0:00:01]} 38. Kg3 {[%clk 0:00:04]} 1-0


[Site "https://www.chess.com"]

[Event "Titled Tuesday Blitz March 14 Late 2023"]
[White "Adewumi, Tanitoluwa"]
[Black "Domingo Nunez, Ruben"]
[WhiteFideId "30966396"]
[BlackFideId "22245570"]
[WhiteElo "2811"]
[BlackElo "2404"]
[Result "1/2-1/2"]
[Round "09"]
[TimeControl "180+2"]
[Date "2023.03.14"]
[WhiteClock "0:00:03"]
[BlackClock "0:00:11"]

1. e4 {[%clk 0:02:56]}  g6 {[%clk 0:02:59]} 2. d4 {[%clk 0:02:56]}  Bg7 {[%clk 0:02:59]} 3. Nf3 {[%clk 0:02:55]}  c6 {[%clk 0:02:56]} 4. Bd3 {[%clk 0:02:55]}  d5 {[%clk 0:02:56]} 5. c3 {[%clk 0:02:56]}  dxe4 {[%clk 0:02:57]} 6. Bxe4 {[%clk 0:02:56]}  Nf6 {[%clk 0:02:58]} 7. Bd3 {[%clk 0:02:57]}  O-O {[%clk 0:02:59]} 8. O-O {[%clk 0:02:57]}  a6 {[%clk 0:02:59]} 9. Be3 {[%clk 0:02:58]}  a5 {[%clk 0:03:00]} 10. Nbd2 {[%clk 0:02:58]}  Na6 {[%clk 0:03:01]} 11. Nc4 {[%clk 0:02:57]}  Nd5 {[%clk 0:02:58]} 12. Re1 {[%clk 0:02:55]}  b5 {[%clk 0:02:59]} 13. Nce5 {[%clk 0:02:54]}  Nxe3 {[%clk 0:02:57]} 14. Rxe3 {[%clk 0:02:32]}  Bb7 {[%clk 0:02:55]} 15. a4 {[%clk 0:02:25]}  b4 {[%clk 0:02:48]} 16. Qe2 {[%clk 0:02:13]}  c5 {[%clk 0:02:23]} 17. Be4 {[%clk 0:01:40]}  Qc7 {[%clk 0:02:03]} 18. Qb5 {[%clk 0:00:46]}  Bxe4 {[%clk 0:01:43]} 19. Rxe4 {[%clk 0:00:47]}  Rfb8 {[%clk 0:01:43]} 20. Qc6 {[%clk 0:00:44]}  Rc8 {[%clk 0:01:38]} 21. Qxc7 {[%clk 0:00:40]}  Rxc7 {[%clk 0:01:39]} 22. d5 {[%clk 0:00:40]}  Bf6 {[%clk 0:01:30]} 23. Rc1 {[%clk 0:00:35]}  Rd8 {[%clk 0:01:24]} 24. c4 {[%clk 0:00:31]}  Nb8 {[%clk 0:01:23]} 25. b3 {[%clk 0:00:29]}  Kg7 {[%clk 0:01:23]} 26. g4 {[%clk 0:00:28]}  h6 {[%clk 0:01:23]} 27. h4 {[%clk 0:00:28]}  g5 {[%clk 0:00:59]} 28. hxg5 {[%clk 0:00:26]}  hxg5 {[%clk 0:00:49]} 29. Rce1 {[%clk 0:00:24]}  Rd6 {[%clk 0:00:41]} 30. Nd3 {[%clk 0:00:20]}  Nd7 {[%clk 0:00:40]} 31. R1e3 {[%clk 0:00:14]}  Nf8 {[%clk 0:00:38]} 32. Nd2 {[%clk 0:00:11]}  Ng6 {[%clk 0:00:38]} 33. Nf1 {[%clk 0:00:11]}  Nf4 {[%clk 0:00:36]} 34. Nxf4 {[%clk 0:00:10]}  gxf4 {[%clk 0:00:37]} 35. Re2 {[%clk 0:00:07]}  Bg5 {[%clk 0:00:36]} 36. Nd2 {[%clk 0:00:06]}  Rg6 {[%clk 0:00:04]} 37. Kg2 {[%clk 0:00:05]}  Kf8 {[%clk 0:00:04]} 38. Nf3 {[%clk 0:00:05]}  f6 {[%clk 0:00:04]} 39. Re6 {[%clk 0:00:02]}  Kf7 {[%clk 0:00:05]} 40. Nd2 {[%clk 0:00:02]}  Bh6 {[%clk 0:00:04]} 41. Kf3 {[%clk 0:00:03]}  Rg8 {[%clk 0:00:04]} 42. Ne4 {[%clk 0:00:03]}  Rh8 {[%clk 0:00:03]} 43. d6 {[%clk 0:00:01]}  Kxe6 {[%clk 0:00:02]} 44. dxc7 {[%clk 0:00:01]}  Kd7 {[%clk 0:00:03]} 45. Nxc5+ {[%clk 0:00:01]}  Kxc7 {[%clk 0:00:04]} 46. Ne6+ {[%clk 0:00:01]}  Kd6 {[%clk 0:00:04]} 47. Nd4 {[%clk 0:00:02]}  Bg5 {[%clk 0:00:05]} 48. Nf5+ {[%clk 0:00:02]}  Kd7 {[%clk 0:00:05]} 49. Rxe7+ {[%clk 0:00:02]}  Kc6 {[%clk 0:00:06]} 50. Re6+ {[%clk 0:00:02]}  Kc5 {[%clk 0:00:06]} 51. Re4 {[%clk 0:00:02]}  Rh3+ {[%clk 0:00:07]} 52. Ke2 {[%clk 0:00:02]}  Rxb3 {[%clk 0:00:08]} 53. Nd4 {[%clk 0:00:02]}  Kxc4 {[%clk 0:00:08]} 54. Nxb3+ {[%clk 0:00:02]}  Kxb3 {[%clk 0:00:09]} 55. Rd4 {[%clk 0:00:01]}  f3+ {[%clk 0:00:08]} 56. Kxf3 {[%clk 0:00:01]}  Kc2 {[%clk 0:00:09]} 57. Ke4 {[%clk 0:00:02]}  b3 {[%clk 0:00:09]} 58. Rd5 {[%clk 0:00:03]}  b2 {[%clk 0:00:10]} 59. Rc5+ {[%clk 0:00:03]}  Kd1 {[%clk 0:00:10]} 60. Rb5 {[%clk 0:00:03]}  Kc1 {[%clk 0:00:10]} 61. Rc5+ {[%clk 0:00:03]}  Kd2 {[%clk 0:00:11]} 62. Rb5 {[%clk 0:00:04]}  Kc2 {[%clk 0:00:11]} 63. f4 {[%clk 0:00:04]}  Bh4 {[%clk 0:00:09]} 64. Rc5+ {[%clk 0:00:04]}  Kb3 {[%clk 0:00:09]} 65. Rb5+ {[%clk 0:00:05]}  Kc3 {[%clk 0:00:09]} 66. Rc5+ {[%clk 0:00:02]}  Kd2 {[%clk 0:00:09]} 67. Rb5 {[%clk 0:00:03]}  Kc2 {[%clk 0:00:10]} 68. Rc5+ {[%clk 0:00:03]}  Kd2 {[%clk 0:00:10]} 69. Rb5 {[%clk 0:00:03]}  Kc2 {[%clk 0:00:11]} 1/2-1/2


[Site "https://www.chess.com"]

[Event "Titled Tuesday Blitz March 14 Late 2023"]
[White "Yelisieiev, Yevhenii"]
[Black "Skvortsov, Andrei"]
[WhiteFideId "14139642"]
[BlackFideId "24108600"]
[WhiteElo "2447"]
[BlackElo "2259"]
[Result "0-1"]
[Round "09"]
[TimeControl "180+2"]
[Date "2023.03.14"]
[WhiteClock "0:00:02"]
[BlackClock "0:00:11"]

1. d4 {[%clk 0:03:00]}  g6 {[%clk 0:02:59]} 2. Nf3 {[%clk 0:03:00]}  Bg7 {[%clk 0:02:59]} 3. g3 {[%clk 0:03:01]}  c5 {[%clk 0:02:58]} 4. dxc5 {[%clk 0:02:59]}  Na6 {[%clk 0:02:55]} 5. Bg2 {[%clk 0:02:54]}  Nxc5 {[%clk 0:02:55]} 6. O-O {[%clk 0:02:55]}  d6 {[%clk 0:02:53]} 7. Nbd2 {[%clk 0:02:38]}  Nf6 {[%clk 0:02:53]} 8. c4 {[%clk 0:02:25]}  O-O {[%clk 0:02:52]} 9. Nd4 {[%clk 0:02:16]}  Ne6 {[%clk 0:02:45]} 10. Nc2 {[%clk 0:02:07]}  Rb8 {[%clk 0:02:39]} 11. b3 {[%clk 0:02:05]}  Nd7 {[%clk 0:02:39]} 12. Rb1 {[%clk 0:02:04]}  a5 {[%clk 0:02:31]} 13. Bb2 {[%clk 0:02:03]}  Bxb2 {[%clk 0:02:31]} 14. Rxb2 {[%clk 0:02:04]}  Ne5 {[%clk 0:02:30]} 15. h3 {[%clk 0:02:01]}  f5 {[%clk 0:02:28]} 16. f4 {[%clk 0:01:53]}  Nc6 {[%clk 0:02:26]} 17. e4 {[%clk 0:01:43]}  Nc5 {[%clk 0:02:25]} 18. exf5 {[%clk 0:01:35]}  Bxf5 {[%clk 0:02:17]} 19. Ne3 {[%clk 0:01:35]}  Bd7 {[%clk 0:02:15]} 20. Nf3 {[%clk 0:01:30]}  Qe8 {[%clk 0:02:10]} 21. Nd5 {[%clk 0:01:24]}  Qf7 {[%clk 0:02:08]} 22. Re2 {[%clk 0:01:13]}  Rbe8 {[%clk 0:01:59]} 23. Ng5 {[%clk 0:01:11]}  Qg7 {[%clk 0:01:57]} 24. Nc7 {[%clk 0:00:57]}  Rc8 {[%clk 0:01:54]} 25. Bd5+ {[%clk 0:00:54]}  Kh8 {[%clk 0:01:50]} 26. Nce6 {[%clk 0:00:53]}  Nxe6 {[%clk 0:01:48]} 27. Bxe6 {[%clk 0:00:53]}  Qd4+ {[%clk 0:01:31]} 28. Kh2 {[%clk 0:00:31]}  Bxe6 {[%clk 0:01:23]} 29. Nxe6 {[%clk 0:00:29]}  Qxd1 {[%clk 0:01:23]} 30. Rxd1 {[%clk 0:00:30]}  Rf6 {[%clk 0:01:18]} 31. Nd4 {[%clk 0:00:30]}  Rf7 {[%clk 0:01:10]} 32. Nxc6 {[%clk 0:00:28]}  bxc6 {[%clk 0:01:10]} 33. Rde1 {[%clk 0:00:24]}  Rc7 {[%clk 0:01:10]} 34. Kg2 {[%clk 0:00:20]}  Kg7 {[%clk 0:01:10]} 35. Kf3 {[%clk 0:00:21]}  Kf8 {[%clk 0:01:10]} 36. Ke4 {[%clk 0:00:19]}  Rf5 {[%clk 0:01:06]} 37. Kd3 {[%clk 0:00:19]}  d5 {[%clk 0:01:02]} 38. c5 {[%clk 0:00:18]}  Rf7 {[%clk 0:00:59]} 39. Re6 {[%clk 0:00:18]}  Ke8 {[%clk 0:00:57]} 40. Kd4 {[%clk 0:00:17]}  Kd7 {[%clk 0:00:54]} 41. R6e2 {[%clk 0:00:15]}  Rb7 {[%clk 0:00:54]} 42. Kc3 {[%clk 0:00:12]}  h6 {[%clk 0:00:49]} 43. Kd4 {[%clk 0:00:10]}  Rb4+ {[%clk 0:00:46]} 44. Kd3 {[%clk 0:00:09]}  Rb5 {[%clk 0:00:46]} 45. Re6 {[%clk 0:00:08]}  Rg7 {[%clk 0:00:43]} 46. Kd4 {[%clk 0:00:04]}  Rb4+ {[%clk 0:00:41]} 47. Kd3 {[%clk 0:00:05]}  g5 {[%clk 0:00:41]} 48. fxg5 {[%clk 0:00:04]}  hxg5 {[%clk 0:00:40]} 49. g4 {[%clk 0:00:04]}  Rf4 {[%clk 0:00:37]} 50. R6e3 {[%clk 0:00:04]}  Rgf7 {[%clk 0:00:36]} 51. a3 {[%clk 0:00:03]}  Rf2 {[%clk 0:00:35]} 52. R1e2 {[%clk 0:00:04]}  Rf1 {[%clk 0:00:35]} 53. Re1 {[%clk 0:00:04]}  R1f4 {[%clk 0:00:34]} 54. R1e2 {[%clk 0:00:04]}  Rh7 {[%clk 0:00:34]} 55. Kc2 {[%clk 0:00:02]}  Rf1 {[%clk 0:00:32]} 56. Re1 {[%clk 0:00:03]}  Rxe1 {[%clk 0:00:32]} 57. Rxe1 {[%clk 0:00:03]}  Rxh3 {[%clk 0:00:33]} 58. Re5 {[%clk 0:00:04]}  a4 {[%clk 0:00:30]} 59. bxa4 {[%clk 0:00:02]}  Rxa3 {[%clk 0:00:31]} 60. Rxg5 {[%clk 0:00:03]}  Rxa4 {[%clk 0:00:31]} 61. Kb3 {[%clk 0:00:02]}  Rc4 {[%clk 0:00:31]} 62. Rg8 {[%clk 0:00:02]}  Rxc5 {[%clk 0:00:31]} 63. g5 {[%clk 0:00:03]}  Rc4 {[%clk 0:00:29]} 64. g6 {[%clk 0:00:03]}  Rg4 {[%clk 0:00:29]} 65. Kc3 {[%clk 0:00:03]}  c5 {[%clk 0:00:29]} 66. Kd3 {[%clk 0:00:02]}  Rg3+ {[%clk 0:00:29]} 67. Ke2 {[%clk 0:00:03]}  c4 {[%clk 0:00:28]} 68. Kf2 {[%clk 0:00:03]}  Rg5 {[%clk 0:00:28]} 69. Ke3 {[%clk 0:00:03]}  e5 {[%clk 0:00:28]} 70. g7 {[%clk 0:00:03]}  Ke7 {[%clk 0:00:27]} 71. Kf3 {[%clk 0:00:02]}  Kf7 {[%clk 0:00:26]} 72. Rd8 {[%clk 0:00:02]}  d4 {[%clk 0:00:20]} 73. Rd7+ {[%clk 0:00:03]}  Ke6 {[%clk 0:00:19]} 74. Rc7 {[%clk 0:00:03]}  c3 {[%clk 0:00:19]} 75. Ke4 {[%clk 0:00:03]}  Rg4+ {[%clk 0:00:18]} 76. Kf3 {[%clk 0:00:04]}  Rg1 {[%clk 0:00:17]} 77. Kf2 {[%clk 0:00:04]}  Rg6 {[%clk 0:00:17]} 78. Kf3 {[%clk 0:00:04]}  c2 {[%clk 0:00:12]} 79. Rxc2 {[%clk 0:00:03]}  Rxg7 {[%clk 0:00:12]} 80. Rc6+ {[%clk 0:00:02]}  Kf5 {[%clk 0:00:12]} 81. Rc8 {[%clk 0:00:01]}  e4+ {[%clk 0:00:12]} 82. Ke2 {[%clk 0:00:02]}  d3+ {[%clk 0:00:11]} 83. Ke3 {[%clk 0:00:02]}  Rg3+ {[%clk 0:00:11]} 84. Kf2 {[%clk 0:00:02]}  Rf3+ {[%clk 0:00:11]} 85. Ke1 {[%clk 0:00:03]}  Kf4 {[%clk 0:00:11]} 86. Kd2 {[%clk 0:00:02]}  Rf2+ {[%clk 0:00:11]} 87. Kd1 {[%clk 0:00:02]}  Rc2 {[%clk 0:00:11]} 0-1


[Site "https://www.chess.com"]

[Event "Titled Tuesday Blitz March 14 Late 2023"]
[White "Rodchenkov, Sergey D."]
[Black "Avila Pavas, Santiago"]
[WhiteFideId "4168712"]
[BlackFideId "4437128"]
[WhiteElo "2277"]
[BlackElo "2365"]
[Result "0-1"]
[Round "09"]
[TimeControl "180+2"]
[Date "2023.03.14"]
[WhiteClock "0:00:33"]
[BlackClock "0:02:44"]

1. e4 {[%clk 0:03:00]}  Nf6 {[%clk 0:03:00]} 2. e5 {[%clk 0:02:59]}  Nd5 {[%clk 0:03:01]} 3. d4 {[%clk 0:02:58]}  d6 {[%clk 0:03:02]} 4. c4 {[%clk 0:02:58]}  Nb6 {[%clk 0:03:02]} 5. exd6 {[%clk 0:02:58]}  cxd6 {[%clk 0:03:03]} 6. Nc3 {[%clk 0:02:57]}  g6 {[%clk 0:03:04]} 7. Be3 {[%clk 0:02:58]}  Bg7 {[%clk 0:03:04]} 8. Rc1 {[%clk 0:02:58]}  O-O {[%clk 0:03:04]} 9. b3 {[%clk 0:02:59]}  e5 {[%clk 0:03:05]} 10. dxe5 {[%clk 0:02:58]}  dxe5 {[%clk 0:03:06]} 11. c5 {[%clk 0:02:58]}  N6d7 {[%clk 0:03:06]} 12. Nf3 {[%clk 0:02:52]}  Nc6 {[%clk 0:03:07]} 13. Bc4 {[%clk 0:02:20]}  Qa5 {[%clk 0:03:07]} 14. O-O {[%clk 0:02:06]}  Nxc5 {[%clk 0:03:07]} 15. Ng5 {[%clk 0:01:37]}  h6 {[%clk 0:02:43]} 16. Nxf7 {[%clk 0:01:15]}  Rxf7 {[%clk 0:02:44]} 17. Bxf7+ {[%clk 0:01:15]}  Kxf7 {[%clk 0:02:43]} 18. Qf3+ {[%clk 0:00:40]}  Kg8 {[%clk 0:02:44]} 19. Qd5+ {[%clk 0:00:33]}  Ne6 {[%clk 0:02:44]} 0-1


[Site "https://www.chess.com"]

[Event "Titled Tuesday Blitz March 14 Late 2023"]
[White "Yeletsky, Ivan"]
[Black "Thomforde-Toates, Noah"]
[WhiteFideId "24180327"]
[BlackFideId "30951992"]
[WhiteElo "2414"]
[BlackElo "2633"]
[Result "1-0"]
[Round "09"]
[TimeControl "180+2"]
[Date "2023.03.14"]
[WhiteClock "0:01:34"]
[BlackClock "0:01:20"]

1. b4 {[%clk 0:03:00]}  Nf6 {[%clk 0:02:56]} 2. Bb2 {[%clk 0:03:01]}  d6 {[%clk 0:02:56]} 3. a3 {[%clk 0:03:01]}  e5 {[%clk 0:02:55]} 4. Nf3 {[%clk 0:03:01]}  Nbd7 {[%clk 0:02:55]} 5. e3 {[%clk 0:03:02]}  b6 {[%clk 0:02:56]} 6. d4 {[%clk 0:03:02]}  e4 {[%clk 0:02:53]} 7. Nfd2 {[%clk 0:03:02]}  d5 {[%clk 0:02:53]} 8. c4 {[%clk 0:03:02]}  c6 {[%clk 0:02:53]} 9. Nc3 {[%clk 0:03:02]}  Be7 {[%clk 0:02:50]} 10. g4 {[%clk 0:03:03]}  h6 {[%clk 0:02:48]} 11. h4 {[%clk 0:03:02]}  h5 {[%clk 0:02:46]} 12. g5 {[%clk 0:03:02]}  Ng4 {[%clk 0:02:46]} 13. cxd5 {[%clk 0:03:02]}  cxd5 {[%clk 0:02:45]} 14. Nxd5 {[%clk 0:03:03]}  Bb7 {[%clk 0:02:39]} 15. Bc4 {[%clk 0:03:01]}  Rc8 {[%clk 0:02:37]} 16. Qb3 {[%clk 0:02:55]}  O-O {[%clk 0:02:33]} 17. Nf4 {[%clk 0:02:54]}  b5 {[%clk 0:02:17]} 18. Bxf7+ {[%clk 0:02:51]}  Kh7 {[%clk 0:02:13]} 19. Bg6+ {[%clk 0:02:40]}  Kh8 {[%clk 0:02:12]} 20. Bxh5 {[%clk 0:02:17]}  Rxf4 {[%clk 0:02:08]} 21. exf4 {[%clk 0:02:16]}  e3 {[%clk 0:02:05]} 22. fxe3 {[%clk 0:02:11]}  Nxe3 {[%clk 0:02:02]} 23. Qxe3 {[%clk 0:02:10]}  Bxh1 {[%clk 0:02:02]} 24. Qe2 {[%clk 0:02:05]}  Nb6 {[%clk 0:01:53]} 25. Bf7 {[%clk 0:02:02]}  g6 {[%clk 0:01:40]} 26. d5+ {[%clk 0:01:36]}  Kh7 {[%clk 0:01:39]} 27. f5 {[%clk 0:01:36]}  Bxg5 {[%clk 0:01:27]} 28. hxg5 {[%clk 0:01:36]}  Qxg5 {[%clk 0:01:20]} 29. Qh2+ {[%clk 0:01:35]}  Qh5 {[%clk 0:01:20]} 30. Bxg6+ {[%clk 0:01:34]} 1-0


[Site "https://www.chess.com"]

[Event "Titled Tuesday Blitz March 14 Late 2023"]
[White "Cardoso Cardoso, Jose Gabriel"]
[Black "Fiorito, Joaquin"]
[WhiteFideId "4430492"]
[BlackFideId "180173"]
[WhiteElo "2496"]
[BlackElo "2157"]
[Result "1-0"]
[Round "09"]
[TimeControl "180+2"]
[Date "2023.03.14"]
[WhiteClock "0:00:02"]
[BlackClock "0:00:05"]

1. d4 {[%clk 0:03:00]}  Nf6 {[%clk 0:02:59]} 2. c4 {[%clk 0:03:01]}  e6 {[%clk 0:03:00]} 3. Nc3 {[%clk 0:03:02]}  Bb4 {[%clk 0:03:00]} 4. e3 {[%clk 0:03:03]}  O-O {[%clk 0:02:59]} 5. Bd2 {[%clk 0:03:03]}  d5 {[%clk 0:02:57]} 6. Nf3 {[%clk 0:03:04]}  b6 {[%clk 0:02:56]} 7. cxd5 {[%clk 0:03:04]}  exd5 {[%clk 0:02:56]} 8. Rc1 {[%clk 0:03:04]}  Bb7 {[%clk 0:02:53]} 9. Bd3 {[%clk 0:03:05]}  a6 {[%clk 0:02:53]} 10. O-O {[%clk 0:03:05]}  Bd6 {[%clk 0:02:53]} 11. Ne5 {[%clk 0:03:05]}  c5 {[%clk 0:02:54]} 12. f4 {[%clk 0:03:06]}  Nc6 {[%clk 0:02:54]} 13. Be1 {[%clk 0:03:02]}  Be7 {[%clk 0:02:51]} 14. Bh4 {[%clk 0:02:58]}  Ne4 {[%clk 0:02:31]} 15. Nxe4 {[%clk 0:02:45]}  dxe4 {[%clk 0:02:14]} 16. Bxe4 {[%clk 0:02:34]}  Nxe5 {[%clk 0:01:29]} 17. Bxb7 {[%clk 0:02:33]}  Rb8 {[%clk 0:01:26]} 18. Be4 {[%clk 0:02:14]}  Ng6 {[%clk 0:01:20]} 19. Bg3 {[%clk 0:02:04]}  f5 {[%clk 0:01:02]} 20. Bc6 {[%clk 0:01:53]}  cxd4 {[%clk 0:00:56]} 21. exd4 {[%clk 0:01:46]}  Bf6 {[%clk 0:00:52]} 22. Qb3+ {[%clk 0:01:42]}  Kh8 {[%clk 0:00:52]} 23. d5 {[%clk 0:01:43]}  Qd6 {[%clk 0:00:50]} 24. Kh1 {[%clk 0:01:36]}  b5 {[%clk 0:00:26]} 25. Rce1 {[%clk 0:01:31]}  Rbd8 {[%clk 0:00:24]} 26. Qc2 {[%clk 0:01:28]}  Ne7 {[%clk 0:00:24]} 27. Re6 {[%clk 0:01:24]}  Qc7 {[%clk 0:00:24]} 28. Rd1 {[%clk 0:01:18]}  Nxd5 {[%clk 0:00:23]} 29. a3 {[%clk 0:00:59]}  Ne7 {[%clk 0:00:19]} 30. Rde1 {[%clk 0:00:52]}  Rc8 {[%clk 0:00:18]} 31. Rc1 {[%clk 0:00:41]}  Qb6 {[%clk 0:00:15]} 32. Bf2 {[%clk 0:00:32]}  Qc7 {[%clk 0:00:10]} 33. g3 {[%clk 0:00:24]}  Rfd8 {[%clk 0:00:10]} 34. Kg2 {[%clk 0:00:19]}  Rd6 {[%clk 0:00:10]} 35. Bd5 {[%clk 0:00:12]}  Qxc2 {[%clk 0:00:07]} 36. Rxc2 {[%clk 0:00:12]}  Rxc2 {[%clk 0:00:06]} 37. Rxd6 {[%clk 0:00:12]}  h6 {[%clk 0:00:05]} 38. Be6 {[%clk 0:00:07]}  Rxb2 {[%clk 0:00:04]} 39. Kf3 {[%clk 0:00:05]}  Kh7 {[%clk 0:00:03]} 40. Bc5 {[%clk 0:00:04]}  Rc2 {[%clk 0:00:02]} 41. Bb4 {[%clk 0:00:04]}  g6 {[%clk 0:00:01]} 42. Rd7 {[%clk 0:00:04]}  Kg7 {[%clk 0:00:01]} 43. Bxe7 {[%clk 0:00:02]}  Bxe7 {[%clk 0:00:02]} 44. Rxe7+ {[%clk 0:00:02]}  Kf6 {[%clk 0:00:03]} 45. Re8 {[%clk 0:00:02]}  Rc3+ {[%clk 0:00:04]} 46. Ke2 {[%clk 0:00:02]}  Rxa3 {[%clk 0:00:04]} 47. Bd5 {[%clk 0:00:02]}  b4 {[%clk 0:00:05]} 48. Rb8 {[%clk 0:00:02]}  Kg7 {[%clk 0:00:05]} 49. Rb7+ {[%clk 0:00:02]}  Kf6 {[%clk 0:00:05]} 50. Rf7# {[%clk 0:00:02]} 1-0


[Site "https://www.chess.com"]

[Event "Titled Tuesday Blitz March 14 Late 2023"]
[White "Matinian, Nikita"]
[Black "Johannesson, Ingvar Thor"]
[WhiteFideId "24129100"]
[BlackFideId "2301490"]
[WhiteElo "2422"]
[BlackElo "2360"]
[Result "1-0"]
[Round "09"]
[TimeControl "180+2"]
[Date "2023.03.14"]
[WhiteClock "0:00:06"]
[BlackClock "0:00:16"]

1. e4 {[%clk 0:02:58]}  e6 {[%clk 0:02:59]} 2. d4 {[%clk 0:02:56]}  d5 {[%clk 0:02:59]} 3. Nc3 {[%clk 0:02:57]}  Bb4 {[%clk 0:02:59]} 4. e5 {[%clk 0:02:57]}  Qd7 {[%clk 0:02:59]} 5. Qg4 {[%clk 0:02:48]}  f5 {[%clk 0:02:58]} 6. Qg3 {[%clk 0:02:45]}  b6 {[%clk 0:02:58]} 7. Ne2 {[%clk 0:02:43]}  Ba6 {[%clk 0:02:57]} 8. Bd2 {[%clk 0:02:39]}  Nc6 {[%clk 0:02:55]} 9. a3 {[%clk 0:02:39]}  Bxc3 {[%clk 0:02:55]} 10. Bxc3 {[%clk 0:02:40]}  O-O-O {[%clk 0:02:51]} 11. h4 {[%clk 0:02:38]}  Nh6 {[%clk 0:02:50]} 12. f3 {[%clk 0:02:34]}  Rdg8 {[%clk 0:02:49]} 13. b4 {[%clk 0:02:29]}  Bc4 {[%clk 0:02:48]} 14. a4 {[%clk 0:02:26]}  Nf7 {[%clk 0:02:33]} 15. b5 {[%clk 0:02:24]}  Ne7 {[%clk 0:02:31]} 16. Nf4 {[%clk 0:02:16]}  g6 {[%clk 0:02:24]} 17. Kf2 {[%clk 0:02:04]}  h6 {[%clk 0:02:20]} 18. a5 {[%clk 0:01:34]}  g5 {[%clk 0:02:08]} 19. hxg5 {[%clk 0:01:31]}  hxg5 {[%clk 0:02:08]} 20. Rxh8 {[%clk 0:01:30]}  Rxh8 {[%clk 0:02:06]} 21. axb6 {[%clk 0:01:09]}  cxb6 {[%clk 0:01:46]} 22. Bxc4 {[%clk 0:00:54]}  dxc4 {[%clk 0:01:45]} 23. Ne2 {[%clk 0:00:42]}  Nd5 {[%clk 0:01:42]} 24. f4 {[%clk 0:00:37]}  g4 {[%clk 0:01:37]} 25. Be1 {[%clk 0:00:32]}  Kb7 {[%clk 0:01:36]} 26. Qa3 {[%clk 0:00:32]}  Ra8 {[%clk 0:01:33]} 27. Qa6+ {[%clk 0:00:29]}  Kb8 {[%clk 0:01:32]} 28. g3 {[%clk 0:00:24]}  Nc7 {[%clk 0:01:31]} 29. Qa4 {[%clk 0:00:19]}  Qd5 {[%clk 0:01:24]} 30. Nc3 {[%clk 0:00:08]}  Qf3+ {[%clk 0:01:18]} 31. Kg1 {[%clk 0:00:08]}  Kb7 {[%clk 0:01:12]} 32. Qxc4 {[%clk 0:00:08]}  Rh8 {[%clk 0:00:18]} 33. Qc6+ {[%clk 0:00:08]}  Qxc6 {[%clk 0:00:18]} 34. bxc6+ {[%clk 0:00:09]}  Kxc6 {[%clk 0:00:19]} 35. Rxa7 {[%clk 0:00:08]}  Ra8 {[%clk 0:00:18]} 36. Rxa8 {[%clk 0:00:08]}  Nxa8 {[%clk 0:00:19]} 37. d5+ {[%clk 0:00:07]}  exd5 {[%clk 0:00:19]} 38. Ne2 {[%clk 0:00:07]}  Kc5 {[%clk 0:00:17]} 39. Bf2+ {[%clk 0:00:07]}  Kc4 {[%clk 0:00:18]} 40. Nd4 {[%clk 0:00:08]}  Nh6 {[%clk 0:00:16]} 41. e6 {[%clk 0:00:05]}  Nc7 {[%clk 0:00:17]} 42. e7 {[%clk 0:00:06]}  Kc3 {[%clk 0:00:16]} 43. Ne6 {[%clk 0:00:06]}  Ne8 {[%clk 0:00:15]} 44. Bxb6 {[%clk 0:00:06]}  Kxc2 {[%clk 0:00:16]} 45. Nc7 {[%clk 0:00:06]} 1-0


[Site "https://www.chess.com"]